bitfinex/quotes_SOLUSD_20250102
["timestamp","ask_amount","ask_price","bid_price","bid_amount"]
[1735842814145,9.08425576,205.73,205.69,1.21717693]
[1735842814841,9.08425576,205.73,205.67,1.5325]
[1735842815228,9.08425576,205.71,205.67,1.5325]
[1735842815662,9.08425576,205.71,205.68,1.21723421]
[1735842816164,9.08425576,205.72,205.68,1.21723421]
[1735842816532,9.08425576,205.72,205.67,1.5325]
[1735842817459,21.23545576,205.74,205.67,1.5325]
[1735842817659,21.23545576,205.74,205.68,1.21731241]
[1735842818259,21.23545576,205.74,205.69,1.21731241]
[1735842818958,21.23545576,205.74,205.7,1.21731241]
[1735842819338,9.08425576,205.74,205.7,1.21731241]
[1735842819533,21.23385576,205.77,205.7,1.21731241]
[1735842819734,23.776884,205.76,205.71,1.21731241]
[1735842820257,23.776884,205.76,205.69,9.08425576]
[1735842820459,9.08425576,205.75,205.69,9.08425576]
[1735842821151,9.08425576,205.75,205.7,1.21706375]
[1735842821959,9.08425576,205.75,205.71,1.21706375]
[1735842822465,9.08425576,205.75,205.72,1.21706375]
[1735842822666,9.08425576,205.76,205.72,1.21706375]
[1735842823066,0.25098,205.79,205.69,30.0]
[1735842823067,12.1478,205.8,205.71,9.08425576]
[1735842823234,9.08425576,205.79,205.72,9.08425576]
[1735842823442,9.08425576,205.77,205.69,39.08425576]
[1735842823639,5.0,205.85,205.73,1.21686972]
[1735842823640,9.08425576,205.76,205.73,1.21686972]
[1735842824258,9.08425576,205.76,205.74,1.21686972]
[1735842825074,29.08425576,205.77,205.69,39.08425576]
[1735842825247,20.0,205.77,205.71,9.08425576]
[1735842825561,9.08425576,205.76,205.7,9.08425576]
[1735842825868,9.08425576,205.77,205.72,1.21692513]
[1735842826465,9.08425576,205.77,205.73,1.21692513]
[1735842827034,9.08425576,205.77,205.74,1.21692513]
[1735842827835,9.08425576,205.77,205.7,9.08425576]
[1735842828238,9.08425576,205.77,205.71,1.21693288]
[1735842828665,9.08425576,205.77,205.72,1.21693288]
[1735842829379,9.08425576,205.77,205.73,1.21693288]
[1735842829871,9.08425576,205.77,205.69,30.0]
[1735842830474,9.08425576,205.77,205.7,1.21697629]
[1735842831206,20.0,205.82,205.72,39.08425576]
[1735842831384,9.08425576,205.8,205.72,39.08425576]
[1735842831789,9.08425576,205.78,205.72,30.0]
[1735842831995,9.08425576,205.78,205.73,1.21697629]
[1735842832609,9.08425576,205.78,205.74,1.21697629]
[1735842833107,9.08425576,205.78,205.75,1.21697629]
[1735842833685,9.08425576,205.78,205.72,30.0]
[1735842833876,9.08425576,205.8,205.72,39.08425576]
[1735842834304,32.86113976,205.81,205.73,9.08425576]
[1735842834506,32.86113976,205.81,205.73,10.30104251]
[1735842834999,32.86113976,205.81,205.74,1.21678675]
[1735842835404,20.0,205.82,205.75,39.08425576]
[1735842835584,9.08425576,205.83,205.75,39.08425576]
[1735842835789,9.08425576,205.82,205.75,39.08425576]
[1735842835990,9.08425576,205.81,205.76,1.21678675]
[1735842836713,9.08425576,205.81,205.77,1.21678675]
[1735842837277,9.08425576,205.81,205.75,30.0]
[1735842837998,9.08425576,205.81,205.76,1.21666096]
[1735842838592,9.08425576,205.8,205.77,1.21666096]
[1735842838813,9.08425576,205.79,205.77,1.21666096]
[1735842839213,9.08425576,205.79,205.74,1.6274]
[1735842839719,9.08425576,205.79,205.75,1.21671062]
[1735842840217,9.08425576,205.79,205.76,1.21671062]
[1735842840427,9.08425576,205.77,205.76,1.21671062]
[1735842841012,23.776884,205.76,205.69,1.547]
[1735842841186,9.08425576,205.72,205.64,18.22462178]
[1735842841521,9.08425576,205.73,205.65,10.30130529]
[1735842841693,9.08425576,205.73,205.66,9.08425576]
[1735842841895,9.08425576,205.75,205.68,9.08425576]
[1735842842224,9.08425576,205.74,205.67,40.30130529]
[1735842842409,9.08425576,205.74,205.67,31.21704953]
[1735842842596,9.08425576,205.73,205.67,1.21704953]
[1735842842791,9.08425576,205.74,205.67,31.21704953]
[1735842842993,29.08425576,205.74,205.68,1.21704953]
[1735842843213,9.08425576,205.73,205.68,1.21704953]
[1735842843813,9.08425576,205.73,205.69,1.21704953]
[1735842844497,29.08425576,205.74,205.67,30.0]
[1735842844705,9.08425576,205.73,205.67,30.0]
[1735842845088,29.08425576,205.74,205.67,30.0]
[1735842845493,9.08425576,205.73,205.68,1.21716919]
[1735842846322,9.08425576,205.73,205.69,1.21716919]
[1735842846701,9.08425576,205.73,205.65,9.08425576]
[1735842847316,9.08425576,205.73,205.66,1.21719148]
[1735842847996,9.08425576,205.73,205.67,1.21719148]
[1735842848602,9.08425576,205.73,205.68,1.21719148]
[1735842849216,9.08425576,205.73,205.65,9.08425576]
[1735842849217,23.776884,205.72,205.65,9.08425576]
[1735842849427,9.08425576,205.71,205.64,31.547]
[1735842849603,9.08425576,205.72,205.64,40.63125576]
[1735842849804,9.08425576,205.71,205.65,1.21722457]
[1735842850200,9.08425576,205.7,205.65,1.21722457]
[1735842850419,9.08425576,205.71,205.66,1.21722457]
[1735842851221,9.08425576,205.71,205.67,1.21722457]
[1735842851529,9.08425576,205.73,205.67,1.21722457]
[1735842851698,32.86113976,205.74,205.67,1.21722457]
[1735842851904,9.08425576,205.76,205.68,10.30148033]
[1735842852319,89.24081562,205.84,205.71,30.0]
[1735842852320,9.08425576,205.77,205.71,30.0]
[1735842852503,9.08425576,205.77,205.69,10.30148033]
[1735842853111,9.08425576,205.77,205.7,1.21722457]
[1735842853831,9.08425576,205.77,205.7,9.08425576]
[1735842854126,9.08425576,205.77,205.71,1.21691291]
[1735842854726,9.08425576,205.77,205.72,1.21691291]
[1735842855230,9.08425576,205.75,205.72,1.21691291]
[1735842855520,23.776884,205.77,205.73,1.21691291]
[1735842855820,9.08425576,205.74,205.66,9.08425576]
[1735842856022,9.08425576,205.72,205.65,30.0]
[1735842856230,9.08425576,205.71,205.65,30.0]
[1735842856400,9.08425576,205.72,205.65,30.0]
[1735842856604,9.08425576,205.72,205.66,1.21710654]
[1735842857416,32.86113976,205.73,205.67,1.21710654]
[1735842857921,12.1499,205.77,205.68,40.3013623]
[1735842858104,9.08425576,205.76,205.68,40.3013623]
[1735842858513,9.08425576,205.76,205.69,9.08425576]
[1735842858832,9.08425576,205.76,205.69,10.3013623]
[1735842859234,9.08425576,205.76,205.69,1.21710654]
[1735842859438,9.08425576,205.76,205.7,1.21710654]
[1735842859935,9.08425576,205.74,205.7,1.21710654]
[1735842860233,9.08425576,205.74,205.71,1.21710654]
[1735842860830,9.08425576,205.74,205.68,30.0]
[1735842861649,9.08425576,205.74,205.69,1.21706179]
[1735842862007,9.08425576,205.75,205.69,1.21706179]
[1735842862330,9.08425576,205.74,205.69,1.21706179]
[1735842862526,9.08425576,205.75,205.7,1.21706179]
[1735842863126,9.08425576,205.75,205.71,1.21706179]
[1735842863435,9.08425576,205.76,205.71,1.21706179]
[1735842863612,9.08425576,205.75,205.71,1.21706179]
[1735842863818,9.08425576,205.75,205.72,1.21706179]
[1735842864432,9.08425576,205.75,205.68,39.08425576]
[1735842864810,9.08425576,205.75,205.69,1.21701958]
[1735842865635,9.08425576,205.75,205.7,1.21701958]
[1735842866121,29.08425576,205.77,205.7,1.21701958]
[1735842866437,29.08425576,205.77,205.71,1.21701958]
[1735842867110,29.08425576,205.77,205.72,1.21701958]
[1735842867822,29.08425576,205.77,205.69,9.08425576]
[1735842868345,29.08425576,205.77,205.71,30.0]
[1735842868640,29.08425576,205.77,205.69,9.08425576]
[1735842869534,9.08425576,205.8,205.72,30.0]
[1735842870337,9.08425576,205.78,205.73,1.21696957]
[1735842871023,9.08425576,205.78,205.74,1.21696957]
[1735842871836,9.08425576,205.78,205.75,1.21696957]
[1735842872346,9.08425576,205.78,205.76,1.21696957]
[1735842872933,9.08425576,205.8,205.72,30.0]
[1735842873241,9.08425576,205.82,205.73,9.08425576]
[1735842873421,9.08425576,205.82,205.74,9.08425576]
[1735842873627,9.08425576,205.83,205.76,39.08425576]
[1735842874252,9.08425576,205.84,205.77,9.08425576]
[1735842874434,9.08425576,205.84,205.78,1.21656956]
[1735842874954,9.08425576,205.84,205.79,1.21656956]
[1735842875445,9.08425576,205.84,205.77,10.65345576]
[1735842875446,9.08425576,205.83,205.8,1.21656956]
[1735842876153,9.08425576,205.83,205.77,1.5692]
[1735842876749,9.08425576,205.83,205.78,1.21650364]
[1735842877434,9.08425576,205.83,205.79,1.21650364]
[1735842878231,9.08425576,205.83,205.77,1.5692]
[1735842878562,9.08425576,205.84,205.77,10.65345576]
[1735842878750,9.08425576,205.83,205.77,1.5692]
[1735842878931,9.08425576,205.83,205.78,1.21650849]
[1735842879353,9.08425576,205.8,205.79,1.21650849]
[1735842880052,24.027864,205.85,205.77,1.5692]
[1735842880053,9.08425576,205.81,205.77,1.5692]
[1735842881549,29.08425576,205.82,205.77,1.5692]
[1735842882554,9.08425576,205.84,205.77,31.5692]
[1735842882929,9.08425576,205.84,205.78,1.21650805]
[1735842883326,9.08425576,205.84,205.79,1.21650805]
[1735842883531,12.1425,205.89,205.79,1.21650805]
[1735842883727,9.08425576,205.86,205.79,9.08425576]
[1735842883929,9.08425576,205.85,205.78,9.08425576]
[1735842885264,9.08425576,205.84,205.77,40.65345576]
[1735842885445,9.08425576,205.84,205.79,1.21646196]
[1735842885634,9.08425576,205.83,205.79,1.21646196]
[1735842886061,9.08425576,205.83,205.77,31.5692]
[1735842886362,9.08425576,205.82,205.77,1.5692]
[1735842886555,9.08425576,205.81,205.77,1.5692]
[1735842886754,9.08425576,205.82,205.77,1.5692]
[1735842886954,9.08425576,205.83,205.77,1.5692]
[1735842887160,9.08425576,205.83,205.78,1.21650907]
[1735842887864,9.08425576,205.82,205.77,1.5692]
[1735842889065,9.08425576,205.83,205.77,1.5692]
[1735842889277,9.08425576,205.82,205.77,1.5692]
[1735842889963,23.776884,205.81,205.77,1.5692]
[1735842890162,9.08425576,205.79,205.72,1.5848]
[1735842890360,9.08425576,205.77,205.72,1.5848]
[1735842890559,9.08425576,205.77,205.75,1.21670219]
[1735842891067,9.08425576,205.76,205.75,1.21670219]
[1735842891367,9.08425576,205.76,205.73,1.21670219]
[1735842891738,9.08425576,205.74,205.73,1.21670219]
[1735842891939,9.08425576,205.74,205.67,10.66905576]
[1735842892452,9.08425576,205.74,205.68,1.21696424]
[1735842893062,9.08425576,205.74,205.69,1.21696424]
[1735842893375,20.0,205.77,205.7,9.08425576]
[1735842893547,20.0,205.77,205.71,9.08425576]
[1735842893952,20.0,205.77,205.71,1.21696424]
[1735842893953,29.08425576,205.77,205.71,1.21696424]
[1735842894575,29.08425576,205.77,205.7,9.08425576]
[1735842896280,29.08425576,205.77,205.71,1.21695589]
[1735842897075,29.08425576,205.77,205.72,1.21695589]
[1735842897374,9.08425576,205.78,205.72,31.21695589]
[1735842897777,9.08425576,205.78,205.72,30.0]
[1735842898375,9.08425576,205.78,205.73,1.21685905]
[1735842899059,9.08425576,205.78,205.72,30.0]
[1735842900464,9.08425576,205.78,205.73,1.21684055]
[1735842901282,9.08425576,205.78,205.72,30.0]
[1735842902375,9.08425576,205.79,205.73,1.21680841]
[1735842902683,9.08425576,205.81,205.74,10.63985576]
[1735842903182,9.08425576,205.81,205.75,1.21680841]
[1735842903376,9.08425576,205.82,205.76,30.0]
[1735842904276,12.1425,205.89,205.78,9.08425576]
[1735842904578,9.08425576,205.85,205.78,9.08425576]
[1735842904759,9.08425576,205.86,205.8,9.08425576]
[1735842905278,9.08425576,205.86,205.79,39.08425576]
[1735842905583,9.08425576,205.85,205.79,30.0]
[1735842906157,9.08425576,205.86,205.79,39.08425576]
[1735842906374,9.08425576,205.86,205.8,1.21641763]
[1735842906681,23.776884,205.88,205.8,10.30067339]
[1735842906879,9.08425576,205.87,205.8,10.30067339]
[1735842907078,9.08425576,205.86,205.81,1.21641763]
[1735842907690,9.08425576,205.86,205.82,1.21641763]
[1735842908385,9.08425576,205.85,205.79,30.0]
[1735842908583,9.08425576,205.86,205.79,30.0]
[1735842908787,9.08425576,205.86,205.8,1.21636748]
[1735842909583,9.08425576,205.86,205.81,1.21636748]
[1735842909786,9.08425576,205.87,205.81,1.21636748]
[1735842910195,9.08425576,205.87,205.82,1.21636748]
[1735842910491,9.08425576,205.91,205.83,9.08425576]
[1735842910681,9.08425576,205.92,205.85,9.08425576]
[1735842911095,9.08425576,205.91,205.84,9.08425576]
[1735842911476,9.08425576,205.9,205.83,9.08425576]
[1735842911680,9.08425576,205.89,205.82,40.69425576]
[1735842912396,9.08425576,205.9,205.85,30.0]
[1735842912691,12.1382,205.96,205.85,30.0]
[1735842912692,9.08425576,205.89,205.85,30.0]
[1735842913081,9.08425576,205.9,205.85,30.0]
[1735842913484,9.08425576,205.91,205.85,30.0]
[1735842913881,29.08425576,205.92,205.85,39.08425576]
[1735842914183,9.08425576,205.91,205.85,30.0]
[1735842914791,20.0,205.92,205.85,30.0]
[1735842914792,9.08425576,205.9,205.85,30.0]
[1735842915306,20.0,205.92,205.85,30.0]
[1735842915307,9.08425576,205.89,205.85,30.0]
[1735842915466,9.08425576,205.88,205.85,30.0]
[1735842916086,9.08425576,205.89,205.85,30.0]
[1735842916399,9.08425576,205.88,205.85,30.0]
[1735842916599,9.08425576,205.89,205.85,30.0]
[1735842917869,9.08425576,205.88,205.85,30.0]
[1735842918779,9.08425576,205.89,205.85,30.0]
[1735842925810,29.08425576,205.9,205.85,30.0]
[1735842926013,23.776884,205.93,205.85,39.08425576]
[1735842926199,9.08425576,205.91,205.85,39.08425576]
[1735842927113,9.08425576,205.91,205.85,30.0]
[1735842927284,9.08425576,205.89,205.85,30.0]
[1735842927709,9.08425576,205.87,205.85,30.0]
[1735842927906,9.08425576,205.86,205.82,1.61]
[1735842928209,12.39158,205.92,205.78,30.0]
[1735842928210,9.08425576,205.84,205.78,30.0]
[1735842928915,9.08425576,205.83,205.79,1.21635549]
[1735842929605,9.08425576,205.83,205.78,30.0]
[1735842930419,9.08425576,205.82,205.77,1.6229]
[1735842931296,9.08425576,205.83,205.77,1.6229]
[1735842933520,29.08425576,205.84,205.79,30.0]
[1735842933699,29.08425576,205.84,205.78,1.21647983]
[1735842934225,9.08425576,205.83,205.77,1.6229]
[1735842935635,29.08425576,205.84,205.77,10.70715576]
[1735842936131,9.08425576,205.83,205.78,1.21648066]
[1735842936933,9.08425576,205.83,205.77,1.6229]
[1735842937231,23.776884,205.87,205.79,30.0]
[1735842937423,9.08425576,205.84,205.79,30.0]
[1735842937729,9.08425576,205.81,205.76,30.0]
[1735842938034,9.08425576,205.79,205.73,30.0]
[1735842938233,9.08425576,205.78,205.73,30.0]
[1735842939033,9.08425576,205.78,205.74,1.21662267]
[1735842939829,9.08425576,205.79,205.75,1.21662267]
[1735842940635,9.08425576,205.78,205.75,1.21662267]
[1735842940800,9.08425576,205.79,205.76,1.21662267]
[1735842941000,9.08425576,205.81,205.76,1.21662267]
[1735842941635,12.1443,205.86,205.76,39.08425576]
[1735842941802,9.08425576,205.84,205.77,9.08425576]
[1735842942999,20.0,205.85,205.78,1.2165432]
[1735842943000,9.08425576,205.83,205.78,1.2165432]
[1735842943730,9.08425576,205.83,205.76,39.08425576]
[1735842943731,9.08425576,205.84,205.79,1.2165432]
[1735842944631,9.08425576,205.84,205.77,9.08425576]
[1735842945136,9.08425576,205.83,205.78,1.21655523]
[1735842945316,9.08425576,205.82,205.78,1.21655523]
[1735842945635,23.776884,205.86,205.79,1.21655523]
[1735842945636,9.08425576,205.83,205.79,1.21655523]
[1735842946237,9.08425576,205.83,205.76,39.08425576]
[1735842946940,9.08425576,205.84,205.77,10.30078516]
[1735842947435,9.08425576,205.84,205.78,1.2165294]
[1735842947937,1.5728,205.89,205.8,30.0]
[1735842948241,6.363,205.9,205.8,30.0]
[1735842948242,9.08425576,205.88,205.81,9.08425576]
[1735842948531,21.22625576,205.9,205.82,10.30078516]
[1735842948740,9.08425576,205.91,205.84,39.08425576]
[1735842949442,9.08425576,205.91,205.85,1.2165294]
[1735842949914,9.08425576,205.9,205.85,1.2165294]
[1735842950113,9.08425576,205.9,205.84,30.0]
[1735842950114,9.08425576,205.9,205.86,1.2165294]
[1735842950639,9.08425576,205.91,205.86,1.2165294]
[1735842950808,9.08425576,205.91,205.84,39.08425576]
[1735842951446,9.08425576,205.91,205.85,1.21611849]
[1735842951954,9.08425576,205.93,205.85,10.30037425]
[1735842952335,9.08425576,205.93,205.84,30.0]
[1735842952336,23.776884,205.94,205.86,10.30037425]
[1735842952565,9.08425576,205.93,205.86,10.30037425]
[1735842952726,9.08425576,205.93,205.86,9.08425576]
[1735842952934,9.08425576,205.95,205.88,10.67155576]
[1735842953742,9.08425576,205.94,205.88,1.5873]
[1735842954339,9.08425576,205.94,205.89,1.21589537]
[1735842955255,9.08425576,205.94,205.9,1.21589537]
[1735842955667,20.0,205.94,205.9,1.21589537]
[1735842956365,20.0,205.94,205.88,10.67155576]
[1735842956569,29.08425576,205.94,205.88,1.5873]
[1735842956771,9.08425576,205.94,205.88,1.5873]
[1735842956952,9.08425576,205.94,205.89,1.21588548]
[1735842957154,9.08425576,205.95,205.89,1.21588548]
[1735842957575,9.08425576,205.95,205.88,10.67155576]
[1735842958171,9.08425576,205.94,205.88,1.5873]
[1735842958753,9.08425576,205.94,205.89,1.21589672]
[1735842959374,9.08425576,205.94,205.9,30.0]
[1735842959694,9.08425576,205.96,205.9,30.0]
[1735842960003,9.08425576,205.95,205.9,30.0]
[1735842960893,12.1371,205.98,205.88,1.5873]
[1735842961068,9.08425576,205.9,205.88,1.5873]
[1735842961273,9.08425576,205.91,205.88,1.5873]
[1735842961472,9.08425576,205.92,205.88,1.5873]
[1735842962173,9.08425576,205.91,205.88,1.5873]
[1735842962376,20.0,205.93,205.88,1.5873]
[1735842962618,9.08425576,205.91,205.88,1.5873]
[1735842963088,9.08425576,205.9,205.84,30.0]
[1735842963471,9.08425576,205.9,205.85,1.21602929]
[1735842964264,9.08425576,205.9,205.86,1.21602929]
[1735842964867,9.08425576,205.9,205.84,30.0]
[1735842965389,9.08425576,205.9,205.85,1.21603573]
[1735842965592,9.08425576,205.89,205.85,1.21603573]
[1735842966390,32.86113976,205.92,205.85,9.08425576]
[1735842966896,9.08425576,205.91,205.84,39.08425576]
[1735842968088,12.1375,205.98,205.9,9.08425576]
[1735842968464,9.08425576,205.97,205.9,9.08425576]
[1735842969873,9.08425576,205.98,205.91,39.08425576]
[1735842970080,9.08425576,205.98,205.91,40.66125576]
[1735842971003,9.08425576,205.96,205.91,1.577]
[1735842972607,23.776884,205.98,205.91,1.577]
[1735842972904,9.08425576,205.95,205.91,1.577]
[1735842973101,9.08425576,205.92,205.86,1.6063]
[1735842973299,9.08425576,205.91,205.86,1.6063]
[1735842973677,9.08425576,205.9,205.86,1.6063]
[1735842973892,9.08425576,205.92,205.86,1.6063]
[1735842974294,9.08425576,205.93,205.86,1.6063]
[1735842974606,9.08425576,205.94,205.87,9.08425576]
[1735842975415,9.08425576,205.96,205.89,9.08425576]
[1735842975799,9.08425576,205.95,205.88,39.08425576]
[1735842976622,9.08425576,205.95,205.89,1.2158391]
[1735842977320,9.08425576,205.95,205.88,39.08425576]
[1735842977633,29.08425576,205.96,205.89,9.08425576]
[1735842977790,9.08425576,205.97,205.91,30.0]
[1735842977993,9.08425576,205.98,205.91,30.0]
[1735842978219,9.08425576,205.97,205.91,30.0]
[1735842978796,9.08425576,205.96,205.89,9.08425576]
[1735842979112,9.08425576,205.95,205.88,30.0]
[1735842979322,9.08425576,205.93,205.86,10.69055576]
[1735842979900,9.08425576,205.93,205.87,1.21596147]
[1735842980122,9.08425576,205.94,205.87,1.21596147]
[1735842980419,9.08425576,205.95,205.88,30.0]
[1735842980599,9.08425576,205.94,205.88,30.0]
[1735842981428,9.08425576,205.94,205.86,10.69055576]
[1735842981429,9.08425576,205.92,205.86,1.6063]
[1735842982326,12.1393,205.95,205.86,1.6063]
[1735842982327,9.08425576,205.93,205.86,10.69055576]
[1735842982529,9.08425576,205.92,205.86,1.6063]
[1735842983613,9.08425576,205.91,205.86,1.6063]
[1735842983932,9.08425576,205.92,205.86,1.6063]
[1735842984335,9.08425576,205.91,205.86,1.6063]
[1735842985938,9.08425576,205.91,205.87,1.21602374]
[1735842986112,9.08425576,205.92,205.87,1.21602374]
[1735842986537,9.08425576,205.91,205.86,1.6063]
[1735842988420,9.08425576,205.92,205.86,1.6063]
[1735842989052,9.08425576,205.91,205.86,1.6063]
[1735842989714,9.08425576,205.9,205.86,1.6063]
[1735842990012,9.08425576,205.91,205.86,1.6063]
[1735842990213,9.08425576,205.92,205.86,1.6063]
[1735842992445,23.776884,205.93,205.86,10.69055576]
[1735842992961,23.776884,205.93,205.87,1.21609045]
[1735842993445,23.776884,205.93,205.87,10.30034621]
[1735842993652,12.1397,205.94,205.87,10.30034621]
[1735842993953,12.1397,205.94,205.88,1.21609045]
[1735842994165,21.22395576,205.94,205.88,1.21609045]
[1735842994633,21.22395576,205.94,205.89,1.21609045]
[1735842994830,9.08425576,205.94,205.89,1.21609045]
[1735842995036,9.08425576,205.97,205.9,9.08425576]
[1735842995359,9.08425576,205.98,205.91,9.08425576]
[1735842995533,9.08425576,205.95,205.9,1.21609045]
[1735842996044,9.08425576,205.95,205.91,1.21609045]
[1735842996353,9.08425576,205.96,205.91,1.21609045]
[1735842996534,9.08425576,205.96,205.89,9.08425576]
[1735842997461,23.776884,205.99,205.88,30.0]
[1735842997462,23.776884,205.99,205.92,9.08425576]
[1735842997663,23.776884,205.99,205.91,9.08425576]
[1735842997664,9.08425576,205.98,205.91,9.08425576]
[1735842997847,9.08425576,205.96,205.9,1.21590549]
[1735842998156,9.08425576,205.96,205.92,1.21590549]
[1735842998967,9.08425576,205.96,205.89,9.08425576]
[1735842999567,9.08425576,205.96,205.9,1.2158387]
[1735842999771,9.08425576,205.95,205.9,1.2158387]
[1735843000140,9.08425576,205.95,205.91,1.2158387]
[1735843000678,9.08425576,205.95,205.92,1.2158387]
[1735843001277,9.08425576,205.96,205.89,9.08425576]
[1735843001853,23.776884,205.95,205.9,1.21583424]
[1735843002170,9.08425576,205.96,205.9,1.21583424]
[1735843002353,12.1371,205.98,205.9,1.21583424]
[1735843002354,9.08425576,205.97,205.9,10.30009]
[1735843002674,23.776884,205.96,205.91,1.21583424]
[1735843003052,32.86113976,205.96,205.91,1.21583424]
[1735843003640,32.86113976,205.96,205.92,1.21583424]
[1735843004179,32.86113976,205.96,205.93,1.21583424]
[1735843004582,32.86113976,205.96,205.88,39.08425576]
[1735843005357,32.86113976,205.96,205.89,1.21583203]
[1735843005548,9.08425576,205.95,205.89,1.21583203]
[1735843005970,9.08425576,205.95,205.9,1.21583203]
[1735843006681,9.08425576,205.96,205.9,1.21583203]
[1735843006878,9.08425576,205.96,205.91,1.21583203]
[1735843007086,29.08425576,205.95,205.91,1.21583203]
[1735843007262,9.08425576,205.92,205.91,1.21583203]
[1735843007462,9.08425576,205.92,205.86,1.6063]
[1735843007463,23.776884,205.91,205.86,1.6063]
[1735843007785,9.08425576,205.9,205.86,1.6063]
[1735843007972,9.08425576,205.9,205.87,1.21613463]
[1735843008168,9.08425576,205.91,205.87,1.21613463]
[1735843008553,9.08425576,205.9,205.87,1.21613463]
[1735843008756,9.08425576,205.9,205.86,1.6063]
[1735843009473,23.776884,205.93,205.86,1.6063]
[1735843009474,9.08425576,205.91,205.86,1.6063]
[1735843009784,32.86113976,205.93,205.86,10.69055576]
[1735843010085,32.86113976,205.93,205.87,1.21611308]
[1735843010586,32.86113976,205.93,205.88,1.21611308]
[1735843011189,32.86113976,205.93,205.89,1.21611308]
[1735843011785,32.86113976,205.93,205.86,10.69055576]
[1735843011993,12.1399,205.94,205.87,9.08425576]
[1735843011994,9.08425576,205.94,205.87,9.08425576]
[1735843012487,32.86113976,205.94,205.87,9.08425576]
[1735843012896,23.776884,205.94,205.88,1.2159939]
[1735843013492,23.776884,205.94,205.89,1.2159939]
[1735843013790,32.86113976,205.94,205.89,1.2159939]
[1735843013966,32.86113976,205.94,205.87,9.08425576]
[1735843013967,32.86113976,205.94,205.9,1.2159939]
[1735843014291,32.86113976,205.94,205.87,9.08425576]
[1735843015095,32.86113976,205.94,205.88,1.21597983]
[1735843015695,32.86113976,205.94,205.89,1.21597983]
[1735843016297,32.86113976,205.94,205.9,1.21597983]
[1735843016870,9.08425576,205.93,205.86,1.6063]
[1735843017388,9.08425576,205.93,205.87,1.21598041]
[1735843017586,32.86113976,205.94,205.87,1.21598041]
[1735843017980,32.86113976,205.94,205.86,10.69055576]
[1735843017981,32.86113976,205.94,205.88,1.21598041]
[1735843018197,23.776884,205.94,205.88,1.21598041]
[1735843018386,23.776884,205.94,205.88,10.30023617]
[1735843018702,23.776884,205.94,205.89,1.21598041]
[1735843019404,23.776884,205.94,205.9,1.21598041]
[1735843019899,23.776884,205.94,205.88,9.08425576]
[1735843020600,20.0,205.96,205.88,39.08425576]
[1735843020904,9.08425576,205.97,205.89,1.21596384]
[1735843021101,9.08425576,205.97,205.89,10.3002196]
[1735843021284,23.776884,205.96,205.89,10.3002196]
[1735843021479,23.776884,205.96,205.9,1.21596384]
[1735843022007,23.776884,205.96,205.91,1.21596384]
[1735843022582,23.776884,205.96,205.92,1.21596384]
[1735843022990,12.1365,205.99,205.92,1.21596384]
[1735843022991,9.08425576,205.98,205.92,1.21596384]
[1735843023407,9.08425576,206.0,205.92,40.3002196]
[1735843023705,9.08425576,205.98,205.93,2.76536384]
[1735843023884,9.08425576,205.99,205.93,2.76536384]
[1735843024319,9.08425576,205.99,205.93,1.5494]
[1735843024526,23.776884,206.02,205.93,1.5494]
[1735843024686,12.1347,206.03,205.93,1.5494]
[1735843024687,9.08425576,206.01,205.94,9.08425576]
[1735843025012,23.776884,206.0,205.95,1.21570062]
[1735843025226,32.86113976,206.0,205.95,1.21570062]
[1735843025809,32.86113976,206.0,205.93,10.63365576]
[1735843026191,23.776884,206.0,205.94,9.08425576]
[1735843026512,23.776884,206.0,205.93,10.63365576]
[1735843026919,9.08425576,206.02,205.95,9.08425576]
[1735843027816,23.776884,206.01,205.96,1.21557399]
[1735843028221,23.776884,206.01,205.97,1.21557399]
[1735843028821,32.86113976,206.01,205.94,9.08425576]
[1735843029196,32.86113976,206.01,205.93,10.63365576]
[1735843029494,32.86113976,206.01,205.95,1.2155467]
[1735843029796,32.86113976,206.01,205.96,1.2155467]
[1735843030538,32.86113976,206.01,205.93,10.63365576]
[1735843030827,32.86113976,206.01,205.94,9.08425576]
[1735843031327,9.08425576,206.01,205.95,1.21553256]
[1735843031500,9.08425576,206.03,205.96,9.08425576]
[1735843031823,12.1325,206.06,205.97,9.08425576]
[1735843032026,9.08425576,206.05,205.99,1.5667]
[1735843032229,23.776884,206.04,205.99,1.5667]
[1735843033327,9.08425576,206.03,205.99,1.5667]
[1735843033702,9.08425576,206.04,205.99,1.5667]
[1735843036819,25.8655,206.12,205.99,1.5667]
[1735843037020,9.08425576,206.07,206.0,6.5492]
[1735843037218,12.1307,206.09,206.0,15.63345576]
[1735843037421,32.86113976,206.08,206.01,39.08425576]
[1735843037763,9.08425576,206.06,206.01,30.0]
[1735843038633,23.776884,206.08,206.0,6.5492]